Cogmind - Beta 10.2 *** ADVENTURER MODE // 2021.01.22 @ 11:10:23 // Winter2019/RPGLIKE Player: Yog-Sothoth Result: Self-destructed Performance ------------- Evolutions (1) 500 Regions Visited (5) 1000 Robots Destroyed (45) 225 Value Destroyed (1195) 1195 Prototype IDs (29) 580 Alien Tech Used (0) 0 Bonus (402) 402 TOTAL SCORE: 3902 Bonus ------- High Alert Combat Kills 102 Aligned with FarCom 300 Cogmind --------- Core Integrity 600/600 Matter 300/300 Energy 179/185 System Corruption 0% Temperature Cool (6) Movement Flying (34) Location -9/Exiles Parts ------- > --- POWER (2) -------- Light Ion Engine Light Nuclear Core > --- PROPULSION (3) --- VTOL Module VTOL Module VTOL Module > --- UTILITY (6) ------ Advanced Visual Processing Unit Sensor Array Improved Signal Interpreter Terrain Scanner Advanced Targeting Computer Maneuvering Thrusters > --- WEAPON (2) ------- Assault Cannon Assault Cannon > --- INVENTORY (3) ---- (None) Peak State ------------ > --- POWER ------------ Light Ion Engine Light Nuclear Core > --- PROPULSION ------- VTOL Module VTOL Module VTOL Module > --- UTILITY ---------- Advanced Visual Processing Unit Advanced Visual Processing Unit Sensor Array Improved Signal Interpreter Terrain Scanner Advanced Targeting Computer > --- WEAPON ----------- Assault Cannon Assault Cannon > --- INVENTORY -------- Improved Heat Sink Maneuvering Thrusters EMP Blaster [Rating: 29] Favorites ----------- Power Light Ion Engine Engine Light Ion Engine Power Core Light Nuclear Core Propulsion Flight Unit Leg Aluminum Leg Flight Unit Flight Unit Utility Sensor Array Device Sensor Array Processor Signal Interpreter Weapon Improved Light Cannon Energy Gun EM Pulse Gun Ballistic Cannon Improved Light Cannon Launcher EMP Blaster Build | -11 -10 -10 -9 -9 -9 ------- Run | Scr Mat Min Mat Min Exi Slots Evolved 9 | 4 . 3 2 . . Power 1 | . . 1 . . . Propulsion 2 | 1 . 1 . . . Utility 5 | 2 . 1 2 . . Weapon 1 | 1 . . . . . Parts Attached 36 | 5 9 8 13 1 . Power 7 | 1 1 4 1 . . Engine 4 | 1 1 1 1 . . Core 3 | . . 3 . . . Reactor . | . . . . . . Propulsion 8 | 2 2 1 3 . . Treads . | . . . . . . Leg 2 | 2 . . . . . Wheel . | . . . . . . Hover . | . . . . . . Flight 6 | . 2 1 3 . . Utility 14 | . 4 3 6 1 . Device 7 | . 3 2 1 1 . Storage . | . . . . . . Processor 7 | . 1 1 5 . . Hackware . | . . . . . . Protection . | . . . . . . Artifact . | . . . . . . Weapon 7 | 2 2 . 3 . . Energy Gun 2 | 2 . . . . . Energy Cannon . | . . . . . . Ballistic Gun . | . . . . . . Ballistic Cannon 4 | . 2 . 2 . . Launcher 1 | . . . 1 . . Special Weapon . | . . . . . . Impact Weapon . | . . . . . . Slashing Weapon . | . . . . . . Piercing Weapon . | . . . . . . Special Melee Weapon . | . . . . . . Unidentified Prototypes . | . . . . . . Parts Lost . | . . . . . . Power . | . . . . . . Propulsion . | . . . . . . Utility . | . . . . . . Weapon . | . . . . . . Highest Loss Streak . | . . . . . . Average Slot Usage (%) 91 | . 78 96 93 100 100 Engine 6 | . 12 7 1 7 7 Core 4 | . . 3 7 7 7 Leg 1 | . 5 . . . . Flight 22 | . 18 23 24 23 23 Device 16 | . 10 20 15 23 23 Processor 19 | . 6 20 25 23 23 Energy Gun 2 | . 9 . . . . Ballistic Cannon 16 | . 15 20 15 15 15 Naked Turns . | . . . . . . Heaviest Build 21 | 9 13 15 20 21 21 Greatest Support 25 | 25 25 17 20 25 25 Greatest Overweight (x) 1 | . . 1 . . . Average Overweight (x) . | . . . . . . Largest Inventory Capacity 3 | 2 2 2 3 3 3 Average Capacity 2 | 2 2 2 2 3 3 Most Carried 3 | 1 2 2 3 3 3 Average Carried 1 | . . 1 2 2 2 Final Capacity 3 | 2 2 2 3 3 3 Final Carried 3 | 1 2 2 3 3 . Class Distribution -------------------- 36% | Scavenger-Scout 33% | Scout 25% | Mutant 5% | Scavenger-Mutant Dominant Class ---------------- Mutant | -10/Materials Scavenger-Scout | -10/Mines Scavenger-Scout | -9/Materials Scout | -9/Mines Scout | -9/Exiles Resources | -11 -10 -10 -9 -9 -9 ----------- Run | Scr Mat Min Mat Min Exi Matter Collected 1239 | 250 186 55 564 184 . Remotely . | . . . . . . Salvage Created 752 | . 200 36 516 . . Parts 90 | . 27 15 43 5 . Haulers Intercepted 2 | . 1 . 1 . . Recyclers Shooed . | . . . . . . Parts Field Recycled . | . . . . . . Retrieved Matter . | . . . . . . Parts Self-Destructed . | . . . . . . Prevented . | . . . . . . Kills | -11 -10 -10 -9 -9 -9 ------- Run | Scr Mat Min Mat Min Exi Combat Hostiles Destroyed 40 | . 10 11 17 2 . Guns 5 | . 5 . . . . Cannons 35 | . 5 11 17 2 . Classes Destroyed 9 | . 5 . 4 . . Builder 1 | . 1 . . . . Hauler 2 | . 1 . 1 . . Recycler 1 | . . . 1 . . Watcher 1 | . 1 . . . . Swarmer 15 | . 5 7 3 . . Grunt 14 | . 5 4 4 1 . Brawler 2 | . . . 1 1 . Duelist 1 | . . . 1 . . Sentry 8 | . . . 8 . . Best Kill Streak 5 | . 4 3 5 2 . Combat Bots Only 4 | . 3 3 4 2 . Max Kills in Single Turn 2 | . 1 1 2 1 . Gunslinging . | . . . . . . Exploded . | . . . . . . Melee . | . . . . . . Uniques/NPCs Destroyed . | . . . . . . Combat | -11 -10 -10 -9 -9 -9 -------- Run | Scr Mat Min Mat Min Exi Damage Taken 666 | . 65 161 432 8 . Core 525 | . 52 125 342 6 . Absorbed by Shields . | . . . . . . Redirected to Core 425 | . 40 100 279 6 . Core Remaining (%) 100 | 100 . 100 . . . Volleys Fired 91 | . 26 21 37 7 . Largest 2 | . 2 2 2 2 . Hottest 88 | . 80 78 88 88 . Shots Fired 181 | . 52 42 73 14 . Gun 26 | . 26 . . . . Cannon 155 | . 26 42 73 14 . Launcher . | . . . . . . Special . | . . . . . . Kinetic 155 | . 26 42 73 14 . Thermal . | . . . . . . Explosive . | . . . . . . Electromagnetic 26 | . 26 . . . . Robot Hit Streak 30 | . 7 13 30 6 . Robot Miss Streak 3 | . 3 2 1 2 . Penetration Max . | . . . . . . Secondary Targets 1 | . 1 . . . . Max Gunslinging Chain 1 | . 1 . . . . Shots Hit Robots 123 | . 29 30 58 6 . Core Hits 52 | . 14 13 23 2 . Critical Hits 1 | . . . 1 . . Critical Kills . | . . . . . . Critical Parts Destroyed 1 | . . . 1 . . Melee Attacks . | . . . . . . Impact . | . . . . . . Slashing . | . . . . . . Piercing . | . . . . . . Sneak Attacks . | . . . . . . Combat Hostiles . | . . . . . . Follow-up Attacks . | . . . . . . Damage Inflicted 2477 | . 457 536 1340 144 . Guns 130 | . 130 . . . . Cannons 2347 | . 327 536 1340 144 . Explosions . | . . . . . . Melee . | . . . . . . Ramming . | . . . . . . Kinetic 2347 | . 327 536 1340 144 . Thermal . | . . . . . . Explosive . | . . . . . . Electromagnetic 130 | . 130 . . . . Impact . | . . . . . . Slashing . | . . . . . . Piercing . | . . . . . . Highest Corruption . | . . . . . . Average Corruption . | . . . . . . Corruption Purged . | . . . . . . Overload Shots . | . . . . . . Overflow Damage 28 | . 8 19 1 . . Projectiles 28 | . 8 19 1 . . Explosions . | . . . . . . Melee . | . . . . . . Knockbacks 13 | . 2 5 5 1 . Impact . | . . . . . . Kinetic 13 | . 2 5 5 1 . Secondary . | . . . . . . Self-Inflicted Damage . | . . . . . . Shots . | . . . . . . Rammed . | . . . . . . Targets Rammed . | . . . . . . Kicked . | . . . . . . Crushed . | . . . . . . Highest Temperature 148 | . 108 8 148 21 . Average Temperature 31 | . 37 4 34 7 . Received Heat Transfer 222 | . 15 45 156 6 . Siege Activations . | . . . . . . Robots Corrupted . | . . . . . . Combat Hostiles . | . . . . . . Parts Fried . | . . . . . . Impact Corruptions . | . . . . . . Robots Melted . | . . . . . . Combat Hostiles . | . . . . . . Parts Melted . | . . . . . . Heat Transferred . | . . . . . . Parts Sabotaged . | . . . . . . Parts Stolen . | . . . . . . Parts Stripped . | . . . . . . Power Chain Reactions . | . . . . . . Missiles Intercepted . | . . . . . . Alert | -11 -10 -10 -9 -9 -9 ------- Run | Scr Mat Min Mat Min Exi Peak Influence 677 | . 325 329 677 310 . Initial 223 | . . 44 108 223 . Average 229 | . 120 210 347 270 . Maximum Alert Level 2 | . 1 1 2 1 . Low Security (%) 49 | 100 83 46 35 . . Level 1 36 | . 16 53 20 100 . Level 2 14 | . . . 43 . . Level 3 . | . . . . . . Level 4 . | . . . . . . Level 5 . | . . . . . . High Security . | . . . . . . Max Security . | . . . . . . Squads Dispatched 2 | . 1 . 1 . . Investigation 2 | . 1 . 1 . . Extermination . | . . . . . . Reinforcement . | . . . . . . Assault . | . . . . . . Garrison . | . . . . . . Intercept . | . . . . . . Construction Impeded . | . . . . . . Haulers Reinforced . | . . . . . . Stealth | -11 -10 -10 -9 -9 -9 --------- Run | Scr Mat Min Mat Min Exi Distress Signals 2 | . 1 . 1 . . Communications Jammed . | . . . . . . Distress Signals . | . . . . . . Times Spotted 67 | . 15 13 35 4 . Peak Tracking Total 7 | . 3 3 7 2 . Tactical Retreats 7 | . 1 1 3 2 . Traps | -11 -10 -10 -9 -9 -9 ------- Run | Scr Mat Min Mat Min Exi Traps Triggered 1 | . 1 . . . . Indirectly . | . . . . . . Trap Hack Attempts . | . . . . . . Triggered . | . . . . . . Disarmed . | . . . . . . Reprogrammed . | . . . . . . Reused . | . . . . . . Traps Extracted . | . . . . . . Installed . | . . . . . . Triggered . | . . . . . . Machines | -11 -10 -10 -9 -9 -9 ---------- Run | Scr Mat Min Mat Min Exi Machines Disabled 2 | . 2 . . . . Max in Single Turn 1 | . 1 . . . . Machines Sabotaged . | . . . . . . Garrisons Compromised . | . . . . . . Overloaded Fab Kills . | . . . . . . Fab Network Shutdowns . | . . . . . . Hacking | -11 -10 -10 -9 -9 -9 --------- Run | Scr Mat Min Mat Min Exi Machines Accessed 13 | . 6 . 5 1 1 Terminals 11 | . 6 . 4 1 . Fabricators . | . . . . . . Repair Stations . | . . . . . . Recycling Units . | . . . . . . Scanalyzers 1 | . . . 1 . . Garrison Access . | . . . . . . Total Hacks 29 | . 11 . 14 3 1 Successful 18 | . 11 . 5 1 1 Failed 11 | . . . 9 2 . Catastrophic 1 | . . . . 1 . Database Lockouts . | . . . . . . Manual 2 | . . . 1 . 1 Terminals 27 | . 11 . 13 3 . Fabricators . | . . . . . . Repair Stations . | . . . . . . Recycling Units . | . . . . . . Scanalyzers 1 | . . . 1 . . Garrison Access . | . . . . . . Terminal Hacks 17 | . 11 . 4 1 1 Prototype ID Bank 4 | . 2 . 2 . . Level Access Points 1 | . . . . 1 . Branch Access Points 1 | . . . 1 . . Emergency Access Points 2 | . 2 . . . . Terminal Index 1 | . 1 . . . . Locate Traps 2 | . 2 . . . . Hauler Manifests 1 | . 1 . . . . Registered Components 1 | . 1 . . . . Registered Prototypes 1 | . 1 . . . . Zone Layout 2 | . 1 . 1 . . EX-Prototype ID Bank 1 | . . . . . 1 Fabricator Hacks . | . . . . . . Repair Station Hacks . | . . . . . . Recycling Unit Hacks . | . . . . . . Scanalyzer . | . . . . . . Garrison Access Hacks . | . . . . . . Unauthorized Hacks 1 | . . . 1 . . Terminals . | . . . . . . Fabricators . | . . . . . . Repair Stations . | . . . . . . Recycling Units . | . . . . . . Scanalyzers 1 | . . . 1 . . Extract 1 | . . . 1 . . Garrison Access . | . . . . . . Data Cores Recovered . | . . . . . . Used . | . . . . . . Hacking Detections 7 | . 4 . 3 . . Full Trace Events . | . . . . . . Feedback Events . | . . . . . . Feedback Blocked . | . . . . . . Robot Schematics Acquired . | . . . . . . Robots Built . | . . . . . . Matter . | . . . . . . Time . | . . . . . . Total Robot Build Rating . | . . . . . . Part Schematics Acquired 3 | . . . 3 . . Parts Built . | . . . . . . Matter . | . . . . . . Time . | . . . . . . Total Part Build Rating . | . . . . . . Parts Repaired . | . . . . . . Time . | . . . . . . Parts Recycled . | . . . . . . Recycled Matter . | . . . . . . Retrieved Matter . | . . . . . . Retrieved Components . | . . . . . . Parts Scanalyzed . | . . . . . . Part Schematics Acquired . | . . . . . . Parts Damaged . | . . . . . . Bothacking | -11 -10 -10 -9 -9 -9 ------------ Run | Scr Mat Min Mat Min Exi Used RIF Installer . | . . . . . . Robots Hacked . | . . . . . . Non-combat . | . . . . . . Combat . | . . . . . . Robot Hacks Applied . | . . . . . . Relay Couplers Released . | . . . . . . Robots Rewired . | . . . . . . Allies Hacked . | . . . . . . Hacks Repelled . | . . . . . . Allies | -11 -10 -10 -9 -9 -9 -------- Run | Scr Mat Min Mat Min Exi Total Allies . | . . . . . . Largest Group . | . . . . . . Highest-Rated Group . | . . . . . . Highest-Rated Ally . | . . . . . . Total Orders . | . . . . . . Ally Attacks . | . . . . . . Total Damage . | . . . . . . Kills . | . . . . . . Allies Corrupted . | . . . . . . Allies Melted . | . . . . . . Intel | -11 -10 -10 -9 -9 -9 ------- Run | Scr Mat Min Mat Min Exi Robot Analysis Total . | . . . . . . Derelict Logs Recovered 4 | . . 2 . 2 . Drone Launches . | . . . . . . Drone Recoveries . | . . . . . . Exploration | -11 -10 -10 -9 -9 -9 ------------- Run | Scr Mat Min Mat Min Exi Turns Passed 1840 | 83 450 377 563 214 153 Spaces Moved 2831 | 61 486 656 641 542 445 Core 4 | 4 . . . . . Treads . | . . . . . . Legs 129 | 57 72 . . . . Wheels . | . . . . . . Hover . | . . . . . . Flight 2698 | . 414 656 641 542 445 Fastest Speed 34 | 50 37 34 34 34 34 Average Speed 38 | 115 49 36 34 34 34 Slowest Speed 120 | 120 120 117 34 34 34 Overloaded Moves . | . . . . . . Propulsion Burnouts . | . . . . . . Robots Hopped 16 | . 5 3 3 5 . Cave-ins Triggered . | . . . . . . Exploration Rate (%) 70 | 5 74 99 60 93 92 Regions Visited 5 Branch Regions 3 Pre-discovered Areas 1 | . . . . 1 . Known Exits Taken 4 | . 1 1 1 1 . Unknown Exits Taken 1 | 1 . . . . . Scrap Searched 3 | . . 1 . 2 . Spaces Dug 1 | . . . 1 . . Terrain Destroyed 9 | . . 4 4 1 . Melee . | . . . . . . Projectile 9 | . . 4 4 1 . AOE . | . . . . . . Terrain Rammed . | . . . . . . Walls Destroyed . | . . . . . . Machines Disabled . | . . . . . . Actions | -11 -10 -10 -9 -9 -9 --------- Run | Scr Mat Min Mat Min Exi Total 3369 | 71 639 751 909 551 448 Wait 354 | 5 106 52 191 . . Move 2796 | 60 477 649 634 531 445 Hop 14 | . 3 3 3 5 . Pick Up 12 | 1 7 1 2 1 . Fast Attach 16 | 5 3 1 7 . . Attach 10 | . 5 4 1 . . Detach 5 | . . 3 2 . . Swap 10 | . 1 3 5 1 . Drop 18 | . 6 1 8 . 3 Fire 91 | . 26 21 37 7 . Melee . | . . . . . . Ram . | . . . . . . Kick . | . . . . . . Crush . | . . . . . . Escape Stasis . | . . . . . . Rewire . | . . . . . . Trap . | . . . . . . Miscellaneous 43 | . 5 13 19 6 . Route ------- -11/Scrapyard -10/Materials (discovered 3 exits: *Mat / *Min x2) -10/Mines (discovered 2 exits: *Mat x2) -9/Materials (discovered 3 exits: *Mat x2 / *Min) -9/Mines (discovered 3 exits: *Mat x2 / *Exi) -9/Exiles (discovered 2 exits: *Min x2) History --------- Turn | Location | Event 1 | -11/Scrapyard | Upgraded with Propulsion slot (x1) 1 | -11/Scrapyard | Upgraded with Utility slot (x2) 1 | -11/Scrapyard | Upgraded with Weapon slot (x1) 3 | -11/Scrapyard | Discovered new exit (range 16) 84 | -11/Scrapyard | Entered Materials 197 | -10/Materials | Discovered new exit (range 15) 276 | -10/Materials | Discovered new exit (range 3) 317 | -10/Materials | Build established: Mutant 475 | -10/Materials | Discovered new exit (range 7) 476 | -10/Materials | Identified exit to Materials 533 | -10/Materials | Identified exit to Mines 534 | -10/Materials | Entered Mines 536 | -10/Mines | Reached level 2 554 | -10/Mines | Upgraded with Utility slot (x1) 561 | -10/Mines | Discovered exit to Materials (range 6) 613 | -10/Mines | Learned location of 2 exits from Materials 781 | -10/Mines | Reached level 3 783 | -10/Mines | Received a Rocket Launcher from a helpful Derelict 784 | -10/Mines | Upgraded with Power slot (x1) 784 | -10/Mines | Upgraded with Propulsion slot (x1) 811 | -10/Mines | Discovered exit to Materials (range 10) 851 | -10/Mines | Build established: Scavenger-Scout 911 | -10/Mines | Entered Materials 912 | -9/Materials | Identified exit to Materials 913 | -9/Materials | Reached level 4 914 | -9/Materials | Upgraded with Utility slot (x1) 1177 | -9/Materials | Reached level 5 1224 | -9/Materials | Identified exit to Mines 1316 | -9/Materials | Reached level 6 1351 | -9/Materials | Upgraded with Utility slot (x1) 1474 | -9/Materials | Entered Mines 1476 | -9/Mines | Reached level 7 1480 | -9/Mines | Discovered exit to Materials (range 5) 1516 | -9/Mines | Build established: Scout 1519 | -9/Mines | Learned 2 Materials zone layouts 1553 | -9/Mines | Assembled infested the area 1615 | -9/Mines | Learned 4 Materials zone layouts 1618 | -9/Mines | Learned location of Storage (-7) 1685 | -9/Mines | Discovered new exit (range 5) 1688 | -9/Mines | Identified exit to Exiles 1688 | -9/Mines | Entered Exiles 1693 | -9/Exiles | Discovered new exit (range 19) 1696 | -9/Exiles | Met 8R-AWN 1702 | -9/Exiles | Met EX-HEX 1712 | -9/Exiles | Met EX-BIN 1716 | -9/Exiles | Aligned with FarCom system 1716 | -9/Exiles | Given EX-Vault access code 1724 | -9/Exiles | Opened EX-Vault 1735 | -9/Exiles | Warned to stay clear of 0b10 Research branches 1742 | -9/Exiles | Met EX-DEC 1755 | -9/Exiles | Visited The Gauntlet 1800 | -9/Exiles | Discovered new exit (range 15) 1804 | -9/Exiles | Identified exit to Mines 1841 | -9/Exiles | Self-destructed Last Messages --------------- prototypes, even erasing a bunch of our data in the process. If you meet any sketchy bots with Exile tech out there, forget about asking questions, just blast 'em a good one for me. J5-HVA: Are you here to join us? Sorry but we don't have any workstations ready for assignment just yet. We're probably going to have to pack up and move anyway, seeing as the Mines are expanding a bit too close for comfort. DK-RAY: Welcome to The Gauntlet! If a prototype's bugged this is where we stop it. Unless we don't. But that rarely happens, honest! 01800_ EXIT=FOUND 01804_ EXIT=IDENTIFIED: MINES EX-BIN: And don't even think about spreading that code around. We're gonna change it right after you leave. Most certainly not to something like 1234 which I did last time as a little joke and some thief managed to sneak in here and steal a few of HEX's prototypes. 01837_ Dropped EMP Blaster. 01838_ Dropped Com. Matter Pod. 01838_ Dropped Imp. Heat Sink. Map ----- +----------------------------------------------------+ | | | | | | | | | | | | | | | | | | | | | | | | | | | | | | | | | | | | | | | | | | | | | | | ??????????##??????############?###?#?????????????? | | ???????????#?###?#### = ##?#???###???????????? | | ??????????##?????#### @&&#?#???##?#???????????? | | ???????????#??????#?# / ####??####???????????? | | ????????????#?#?##?## X###?##?##????????????? | | ????????????#?#####?## ###########???????????? | | ??????????##?########X !]! ######???#????????????? | | ??????????##?#?##?#### ##?###?#??????????????? | | ???????????#?####?#### ###########???????????? | | ??????????########?### #?########????????????? | | ???????????##?###?#?## ##""""""#?????????????? | | ?????????????######?## ## """##????????????? | | ???????????######?#### X""#?????????????? | | ??????????############ ## """##????????????? | | ???????????#?#######?# #?""""""####??????????? | | ?????????????#""""""## #########?#???????????? | | ???????????###"""" ## #?#######?#???????????? | | ????????????##""X" #####?###?#????#??????? | | ???????????#?#" ####?###?##??#????????? | | ????????????##" ## #?#####?#???#???#?????? | | ???????????###""""""## #############?????????? | | ???????????####"###### ###"""""""#?#?#???????? | | ???????????? "##?### ###"""""""##??????????? | | ???????????#""" #?#### ###"""""""#???????????? | | ????????????""" ##?### ###"" """"#??#????????? | | ?????????????""?###?#" """"##???#??????? | | ????????????#?##?####" """##???#??????? | +----------------------------------------------------+ Best States ------------- Heat Dissipation 51 Energy Generation 34 Energy Capacity 250 Matter Stores 300 Matter Capacity 300 Sight Range 22 Robot Scan Range 12 Terrain Scan Range 14 Terrain Scan Density 510 Resistance: KI 20 Resistance: TH 20 Resistance: EX 20 Resistance: EM 20 Resistance: I 20 Resistance: S 20 Resistance: P 20 Evasion (%) 69 Targeting Accuracy 8 Offensive Hacking 10 Item Schematics ----------------- EM Shotgun | -9/Materials | Extracted Imp. Treads | -9/Materials | Extracted Heat Sink | -9/Materials | Extracted Robot Schematics ------------------ None Fabricated ------------ Nothing Alien Tech Used ----------------- None Achievements -------------- None Challenges ------------ None RPGLIKE | -11 -10 -10 -9 -9 -9 --------- Run | Scr Mat Min Mat Min Exi Levels Raised 6 | . . 2 3 1 . XP Earned 13917 | 4000 1455 1925 5252 935 350 XP Spent 12960 | 4000 . 2970 4450 1540 . Upgrades 28 | 9 . 8 7 4 . Power Slot 1 | . . 1 . . . Propulsion Slot 2 | 1 . 1 . . . Utility Slot 5 | 2 . 1 2 . . Weapon Slot 1 | 1 . . . . . Heat Dissipation 3 | . . 2 . 1 . Energy Generation 3 | 2 . . . 1 . Mass Support 2 | 1 . . . 1 . Inventory Capacity 3 | 2 . . 1 . . Sight Range 2 | . . 2 . . . Sensor Range 1 | . . . . 1 . Terrain Scan Density 5 | . . 1 4 . . Protomatter Created 486 | . 114 116 184 72 . Integrity Restored 689 | . 46 180 364 99 . Core 525 | . 34 143 323 25 . Parts 164 | . 12 37 41 74 . Protomatter Decayed 245 | . 96 61 15 73 . Game ------ Seed ShrapnelIntegrityKatana Manual? 0 Play Time 00:36:01 Cumulative 53.7 hours Start 2021.01.18 @ 16:26:52 End 2021.01.22 @ 11:10:23 Sessions 3 Manual Loads 0 Difficulty Adventurer Special Mode Winter2019/RPGLIKE Game No. 59 Rogue 0 Adventurer 55 Explorer 4 Win Type - Total 0 Types 0/0/0/0/0/0/0/0/0 Lore% 28 Gallery% 43 Achievement% 30 Wizard Run 0 Options --------- ASCII 0 Keyboard 0 Movement Mouse Keybinds 0 Fullscreen 2 Font 20/SmallcapsGlow Map View 66x50 Tactical HUD 1 Map Filters NONE Filters NONE Steam 1 RUN: 9186c8be-dafd-435c-9c0a-d5e612b1a00d